[Event "44th Chess Olympiad Open 2022"]
[Site "Chennai"]
[Date "2022.08.07"]
[Round "9.46"]
[White "Al-Aqrabi, Saleh"]
[Black "Rakotomaharavo, Dylan"]
[Result "0-1"]
[WhiteElo "2172"]
[BlackElo "1948"]
[Annotator "RC"]
[PlyCount "122"]
[EventDate "2022.??.??"]
[TimeControl "60"]

1. d4 {[%emt 0:00:02]} Nf6 {[%emt 0:00:08]} 2. Bf4 {[%emt 0:00:10]} d5 {
[%emt 0:00:09]} 3. e3 {[%emt 0:00:09]} Bf5 {[%emt 0:00:11]} 4. Nd2 {[%emt 0:00:
00]} e6 {[%emt 0:00:08]} 5. c3 {[%emt 0:00:12]} Bd6 {[%emt 0:00:10]} 6. Bg3 {
[%emt 0:00:19]} O-O {[%emt 0:00:10]} 7. Ngf3 {[%emt 0:00:38]} c5 {[%emt 0:00:
00]} 8. Qb3 {[%emt 0:00:24]} b6 {[%emt 0:00:13]} 9. Be2 {[%emt 0:00:09]} Nc6 {
[%emt 0:00:17]} 10. O-O {[%emt 0:00:30]} Qc7 {[%emt 0:00:07]} 11. Rfe1 {
[%emt 0:00:22]} h6 {[%emt 0:00:19]} 12. Bf1 {[%emt 0:00:42]} e5 {[%emt 0:00:41]
} 13. dxe5 {[%emt 0:00:14]} Nxe5 {[%emt 0:00:06]} 14. Nxe5 {[%emt 0:00:39]}
Bxe5 {[%emt 0:00:04]} 15. Nf3 {[%emt 0:00:39]} Bxg3 {[%emt 0:00:07]} 16. hxg3 {
[%emt 0:00:06]} Rad8 {[%emt 0:00:34]} 17. a4 {[%emt 0:00:17]} a5 {[%emt 0:00:
00]} 18. Red1 {[%emt 0:01:16]} Rd6 {[%emt 0:01:24]} 19. c4 {[%emt 0:08:34]}
Rfd8 {[%emt 0:01:23]} 20. cxd5 {[%emt 0:00:41]} Nxd5 {[%emt 0:00:39]} 21. Bc4 {
[%emt 0:00:09]} Nb4 {[%emt 0:00:41]} 22. Rxd6 {[%emt 0:00:32]} Rxd6 {[%emt 0:
00:00]} 23. Qc3 {[%emt 0:02:22]} Qd8 {[%emt 0:10:37]} 24. Qe5 {[%emt 0:06:53]}
Be6 {[%emt 0:00:38]} 25. Bb5 {[%emt 0:01:35]} Rd5 {[%emt 0:01:19]} 26. Qc3 {
[%emt 0:03:13]} Qd6 {[%emt 0:07:26]} 27. Kh2 {[%emt 0:02:59]} Bg4 {[%emt 0:00:
00]} 28. e4 {[%emt 0:03:22]} Rh5+ {[%emt 0:02:04]} 29. Kg1 {[%emt 0:00:06]}
Bxf3 {[%emt 0:02:16]} 30. gxf3 {[%emt 0:03:55]} Re5 {[%emt 0:04:01]} 31. Qb3 {
[%emt 0:02:20]} Re7 {[%emt 0:01:54]} 32. Rd1 {[%emt 0:00:23]} Qc7 {[%emt 0:00:
00]} 33. Rd2 {[%emt 0:04:03]} Kh7 {[%emt 0:03:36]} 34. Qd1 {[%emt 0:02:18]} Qe5
{[%emt 0:02:44]} 35. Bc4 {[%emt 0:15:27]} Nc6 {[%emt 0:06:37]} 36. f4 {[%emt 0:
00:00]} Qc7 {[%emt 0:00:10]} 37. e5 {[%emt 0:07:11]} Nd4 {[%emt 0:00:20]} 38.
Qb1+ {[%emt 0:01:59]} g6 {[%emt 0:00:25]} 39. Qe4 {[%emt 0:01:09]} Qd7 {
[%emt 0:00:19]} 40. Rd3 {[%emt 0:10:54]} Qxa4 {[%emt 0:00:44]} 41. b3 {[%emt 0:
00:00]} Qd7 {[%emt 0:30:21]} 42. Qa8 {[%emt 0:01:36]} b5 {[%emt 0:03:13]} 43.
Bd5 {[%emt 0:01:41]} Re8 {[%emt 0:00:42]} 44. Qb7 {[%emt 0:01:13]} Qxb7 {
[%emt 0:00:45]} 45. Bxb7 {[%emt 0:00:14]} Kg7 {[%emt 0:00:21]} 46. Kf1 {
[%emt 0:00:22]} Re7 {[%emt 0:00:29]} 47. Ba6 {[%emt 0:01:25]} Rc7 {[%emt 0:00:
00]} 48. Rc3 {[%emt 0:00:31]} Kf8 {[%emt 0:00:23]} 49. g4 {[%emt 0:01:38]} Ke7
{[%emt 0:09:08]} 50. f5 {[%emt 0:02:07]} gxf5 {[%emt 0:04:12]} 51. gxf5 {
[%emt 0:00:04]} b4 {[%emt 0:00:46]} 52. f6+ {[%emt 0:00:30]} Ke6 {[%emt 0:00:
00]} 53. Re3 {[%emt 0:00:03]} c4 {[%emt 0:04:48]} 54. Bxc4+ {[%emt 0:07:30]}
Rxc4 {[%emt 0:00:43]} 55. bxc4 {[%emt 0:00:35]} b3 {[%emt 0:00:03]} 56. f4 {
[%emt 0:04:22]} a4 {[%emt 0:02:32]} 57. Re1 {[%emt 0:00:00]} b2 {[%emt 0:00:00]
} 58. f5+ {[%emt 0:00:00]} Kxf5 {[%emt 0:00:00]} 59. e6 {[%emt 0:00:00]} Nxe6 {
[%emt 0:00:00]} 60. Ke2 {[%emt 0:00:00]} a3 {[%emt 0:00:00]} 61. Kd3 {[%emt 0:
00:00]} a2 {[%emt 0:00:00]} 0-1

[Event "44th Chess Olympiad Open 2022"]
[Site "Chennai"]
[Date "2022.08.07"]
[Round "9.46"]
[White "Razanadrakotoarisoa, Toavina"]
[Black "Al-Zendani, Zendan"]
[Result "1/2-1/2"]
[WhiteElo "2039"]
[BlackElo "2284"]
[Annotator "RC"]
[PlyCount "109"]
[EventDate "2022.??.??"]
[TimeControl "60"]

1. e4 {[%emt 0:00:03]} c5 {[%emt 0:00:05]} 2. Nf3 {[%emt 0:00:06]} Nc6 {
[%emt 0:00:08]} 3. d4 {[%emt 0:00:19]} cxd4 {[%emt 0:00:06]} 4. Nxd4 {[%emt 0:
00:00]} Nf6 {[%emt 0:00:17]} 5. Nc3 {[%emt 0:00:09]} e5 {[%emt 0:00:04]} 6.
Ndb5 {[%emt 0:00:08]} d6 {[%emt 0:00:09]} 7. Nd5 {[%emt 0:00:09]} Nxd5 {
[%emt 0:00:07]} 8. exd5 {[%emt 0:00:05]} Ne7 {[%emt 0:02:28]} 9. c4 {[%emt 0:
00:00]} Nf5 {[%emt 0:00:05]} 10. Bd3 {[%emt 0:03:24]} Be7 {[%emt 0:24:46]} 11.
O-O {[%emt 0:02:13]} a6 {[%emt 0:01:01]} 12. Nc3 {[%emt 0:00:44]} O-O {[%emt 0:
00:00]} 13. Kh1 {[%emt 0:08:26]} g6 {[%emt 0:19:06]} 14. b3 {[%emt 0:11:54]}
Ng7 {[%emt 0:03:10]} 15. f4 {[%emt 0:03:37]} exf4 {[%emt 0:18:16]} 16. Bxf4 {
[%emt 0:04:18]} f5 {[%emt 0:00:04]} 17. Qc2 {[%emt 0:25:31]} Bf6 {[%emt 0:00:
00]} 18. Rae1 {[%emt 0:01:46]} Nh5 {[%emt 0:02:53]} 19. Bh6 {[%emt 0:09:49]}
Bg7 {[%emt 0:01:28]} 20. Bxg7 {[%emt 0:00:19]} Nxg7 {[%emt 0:00:34]} 21. Ne2 {
[%emt 0:01:39]} Bd7 {[%emt 0:02:20]} 22. Qd2 {[%emt 0:07:34]} Re8 {[%emt 0:00:
00]} 23. Qb4 {[%emt 0:00:54]} Qc7 {[%emt 0:01:07]} 24. Nd4 {[%emt 0:01:06]} b6
{[%emt 0:01:40]} 25. Nf3 {[%emt 0:00:53]} Rxe1 {[%emt 0:03:35]} 26. Rxe1 {
[%emt 0:00:11]} Re8 {[%emt 0:00:11]} 27. Qd2 {[%emt 0:05:53]} a5 {[%emt 0:00:
00]} 28. Rxe8+ {[%emt 0:03:57]} Bxe8 {[%emt 0:00:08]} 29. Qg5 {[%emt 0:00:46]}
Bf7 {[%emt 0:05:09]} 30. Qh4 {[%emt 0:03:58]} Qc5 {[%emt 0:02:02]} 31. Qe7 {
[%emt 0:01:38]} h6 {[%emt 0:00:14]} 32. Qd8+ {[%emt 0:01:40]} Kh7 {[%emt 0:00:
00]} 33. Qf6 {[%emt 0:00:17]} Qe3 {[%emt 0:00:51]} 34. Qxf7 {[%emt 0:00:44]}
Qxd3 {[%emt 0:00:09]} 35. Qc7 {[%emt 0:01:01]} Qb1+ {[%emt 0:00:40]} 36. Ng1 {
[%emt 0:00:04]} Qxa2 {[%emt 0:00:25]} 37. Qxb6 {[%emt 0:00:02]} Qa3 {[%emt 0:
00:00]} 38. Nf3 {[%emt 0:01:16]} g5 {[%emt 0:00:25]} 39. Qe3 {[%emt 0:02:01]}
a4 {[%emt 0:00:42]} 40. Nd4 {[%emt 0:00:19]} f4 {[%emt 0:01:25]} 41. Qd3+ {
[%emt 0:30:48]} Kg8 {[%emt 0:30:23]} 42. Qc3 {[%emt 0:00:00]} Qa2 {[%emt 0:00:
00]} 43. h3 {[%emt 0:00:00]} a3 {[%emt 0:00:00]} 44. Ne6 {[%emt 0:00:00]} Qb2 {
[%emt 0:00:00]} 45. Qa5 {[%emt 0:00:00]} a2 {[%emt 0:00:00]} 46. Qd8+ {[%emt 0:
00:00]} Kf7 {[%emt 0:00:00]} 47. Qd7+ {[%emt 0:00:00]} Kg8 {[%emt 0:00:00]} 48.
Qd8+ {[%emt 0:00:00]} Kf7 {[%emt 0:00:36]} 49. Qd7+ {[%emt 0:00:00]} Kg8 {
[%emt 0:00:34]} 50. Qd8+ {[%emt 0:00:00]} Kf7 {[%emt 0:00:06]} 51. Qd7+ {
[%emt 0:00:00]} Kg6 {[%emt 0:01:42]} 52. Nf8+ {[%emt 0:00:02]} Kf6 53. Nh7+ {
[%emt 0:00:02]} Ke5 {[%emt 0:00:01]} 54. Qxg7+ {[%emt 0:00:01]} Kf5 {[%emt 0:
00:00]} 55. Qd7+ {[%emt 0:00:00]} 1/2-1/2

[Event "44th Chess Olympiad Open 2022"]
[Site "Chennai"]
[Date "2022.08.07"]
[Round "9.46"]
[White "Rajerison, Mananihaja Charly"]
[Black "Al Harazy, Khalid"]
[Result "0-1"]
[WhiteElo "1912"]
[BlackElo "2149"]
[Annotator "RC"]
[PlyCount "110"]
[EventDate "2022.??.??"]
[TimeControl "60"]

1. e4 {[%emt 0:00:01]} e5 {[%emt 0:00:07]} 2. Nf3 {[%emt 0:00:07]} Nc6 {
[%emt 0:00:08]} 3. Bc4 {[%emt 0:00:05]} Bc5 {[%emt 0:00:30]} 4. c3 {[%emt 0:00:
00]} Nf6 {[%emt 0:00:07]} 5. d3 {[%emt 0:00:06]} d6 {[%emt 0:00:32]} 6. Nbd2 {
[%emt 0:00:25]} h6 {[%emt 0:00:21]} 7. a4 {[%emt 0:01:13]} a5 {[%emt 0:00:15]}
8. h3 {[%emt 0:02:01]} O-O {[%emt 0:00:38]} 9. Qe2 {[%emt 0:01:22]} Be6 {
[%emt 0:05:47]} 10. g3 {[%emt 0:15:06]} Qc8 {[%emt 0:20:48]} 11. g4 {[%emt 0:
00:00]} d5 {[%emt 0:04:20]} 12. exd5 {[%emt 0:01:21]} Nxd5 {[%emt 0:06:14]} 13.
Ne4 {[%emt 0:00:17]} Be7 {[%emt 0:06:09]} 14. Rg1 {[%emt 0:02:37]} f6 {[%emt 0:
00:00]} 15. Nh4 {[%emt 0:02:35]} Qd7 {[%emt 0:05:20]} 16. Nf5 {[%emt 0:04:11]}
Rad8 {[%emt 0:00:55]} 17. h4 {[%emt 0:00:36]} Nf4 {[%emt 0:20:46]} 18. Bxe6+ {
[%emt 0:06:17]} Nxe6 {[%emt 0:00:52]} 19. Rg3 {[%emt 0:00:57]} Nf4 {[%emt 0:00:
00]} 20. Bxf4 {[%emt 0:05:09]} exf4 {[%emt 0:00:01]} 21. Rg1 {[%emt 0:00:15]}
Qxd3 {[%emt 0:00:49]} 22. Nxe7+ {[%emt 0:02:56]} Nxe7 {[%emt 0:00:13]} 23. Qxd3
{[%emt 0:01:31]} Rxd3 {[%emt 0:00:06]} 24. Nc5 {[%emt 0:00:24]} Rd5 {[%emt 0:
00:00]} 25. Nb3 {[%emt 0:01:53]} Ng6 {[%emt 0:02:00]} 26. Rh1 {[%emt 0:01:41]}
Re8+ {[%emt 0:01:12]} 27. Kf1 {[%emt 0:00:03]} Ne5 {[%emt 0:05:10]} 28. Re1 {
[%emt 0:00:40]} Red8 {[%emt 0:02:14]} 29. g5 {[%emt 0:00:41]} fxg5 {[%emt 0:00:
00]} 30. hxg5 {[%emt 0:00:19]} hxg5 {[%emt 0:00:01]} 31. Nd4 {[%emt 0:00:35]}
Kf7 {[%emt 0:01:44]} 32. Rg1 {[%emt 0:00:43]} Rxd4 {[%emt 0:04:14]} 33. Rxe5 {
[%emt 0:00:18]} Rd1+ {[%emt 0:00:09]} 34. Re1 {[%emt 0:00:14]} Kf6 {[%emt 0:00:
00]} 35. Kg2 {[%emt 0:03:41]} Rxe1 {[%emt 0:00:11]} 36. Rxe1 {[%emt 0:00:08]}
Rd2 {[%emt 0:00:05]} 37. Rb1 {[%emt 0:01:46]} g4 {[%emt 0:00:50]} 38. b4 {
[%emt 0:00:26]} axb4 {[%emt 0:01:57]} 39. Rxb4 {[%emt 0:00:15]} g5 {[%emt 0:00:
00]} 40. Kg1 {[%emt 0:00:33]} b6 {[%emt 0:00:29]} 41. Rc4 {[%emt 0:30:10]} c5 {
[%emt 0:30:38]} 42. a5 {[%emt 0:00:23]} bxa5 {[%emt 0:00:02]} 43. Rxc5 {
[%emt 0:00:12]} a4 {[%emt 0:00:21]} 44. Ra5 {[%emt 0:00:22]} Ra2 {[%emt 0:00:
00]} 45. c4 {[%emt 0:00:29]} a3 {[%emt 0:01:02]} 46. c5 {[%emt 0:00:06]} f3 {
[%emt 0:00:26]} 47. c6 {[%emt 0:00:35]} Rc2 {[%emt 0:00:21]} 48. Rxa3 {[%emt 0:
00:00]} Rxc6 {[%emt 0:00:03]} 49. Ra2 {[%emt 0:01:40]} Rc1+ {[%emt 0:00:00]}
50. Kh2 {[%emt 0:00:00]} Kg6 {[%emt 0:00:00]} 51. Ra6+ {[%emt 0:00:00]} Kh5 {
[%emt 0:00:00]} 52. Ra4 {[%emt 0:00:00]} Rf1 {[%emt 0:00:00]} 53. Ra2 {[%emt 0:
00:00]} Kh4 {[%emt 0:00:00]} 54. Ra8 {[%emt 0:00:00]} Rxf2+ {[%emt 0:00:00]}
55. Kg1 {[%emt 0:00:00]} g3 {[%emt 0:00:00]} 0-1

[Event "44th Chess Olympiad Open 2022"]
[Site "Chennai"]
[Date "2022.08.07"]
[Round "9.47"]
[White "Cu Hor, Winston Darwin"]
[Black "Aziz, Husain"]
[Result "1/2-1/2"]
[WhiteElo "2328"]
[BlackElo "2380"]
[Annotator "RC"]
[PlyCount "72"]
[EventDate "2022.??.??"]
[TimeControl "60"]

1. Nf3 {[%emt 0:00:04]} d5 {[%emt 0:00:12]} 2. c4 {[%emt 0:00:14]} e6 {[%emt 0:
00:00]} 3. g3 {[%emt 0:00:11]} Nf6 {[%emt 0:00:10]} 4. Bg2 {[%emt 0:00:23]} Be7
{[%emt 0:00:21]} 5. O-O {[%emt 0:00:15]} O-O {[%emt 0:00:08]} 6. d3 {[%emt 0:
00:00]} c5 {[%emt 0:01:41]} 7. b3 {[%emt 0:04:39]} Nc6 {[%emt 0:00:27]} 8. e3 {
[%emt 0:00:20]} b6 {[%emt 0:06:19]} 9. Bb2 {[%emt 0:01:15]} Bb7 {[%emt 0:00:09]
} 10. Nc3 {[%emt 0:00:39]} dxc4 {[%emt 0:01:41]} 11. bxc4 {[%emt 0:04:36]} Qc7
{[%emt 0:00:24]} 12. Qe2 {[%emt 0:00:12]} Rfd8 {[%emt 0:00:15]} 13. Rad1 {
[%emt 0:00:13]} a6 {[%emt 0:00:49]} 14. Ne1 {[%emt 0:00:09]} Ne8 {[%emt 0:00:
00]} 15. f4 {[%emt 0:00:47]} Nd6 {[%emt 0:00:26]} 16. Ne4 {[%emt 0:14:15]} Nxe4
{[%emt 0:05:39]} 17. Bxe4 {[%emt 0:00:16]} Na5 {[%emt 0:00:28]} 18. Bxb7 {
[%emt 0:02:17]} Nxb7 {[%emt 0:04:03]} 19. f5 {[%emt 0:01:41]} exf5 {[%emt 0:00:
00]} 20. Rxf5 {[%emt 0:00:38]} b5 {[%emt 0:01:03]} 21. Ng2 {[%emt 0:07:32]}
bxc4 {[%emt 0:10:00]} 22. Nf4 {[%emt 0:28:25]} Nd6 {[%emt 0:10:15]} 23. Nd5 {
[%emt 0:00:35]} Qb7 {[%emt 0:00:27]} 24. Re5 {[%emt 0:02:47]} Bf8 {[%emt 0:00:
00]} 25. Rg5 {[%emt 0:04:41]} h6 {[%emt 0:12:58]} 26. Nf6+ {[%emt 0:09:43]} Kh8
{[%emt 0:00:08]} 27. dxc4 {[%emt 0:04:28]} Ne4 {[%emt 0:02:56]} 28. Rxd8 {
[%emt 0:01:43]} Rxd8 {[%emt 0:00:01]} 29. Rd5 {[%emt 0:00:34]} Rxd5 {[%emt 0:
00:00]} 30. Nxd5 {[%emt 0:00:03]} Nd6 {[%emt 0:01:06]} 31. Qc2 {[%emt 0:02:15]}
Qc8 {[%emt 0:04:53]} 32. Be5 {[%emt 0:00:46]} Qg4 {[%emt 0:01:20]} 33. Bxd6 {
[%emt 0:00:44]} Bxd6 {[%emt 0:00:02]} 34. Qd3 {[%emt 0:00:46]} Qg5 {[%emt 0:00:
00]} 35. Qe4 {[%emt 0:01:36]} g6 {[%emt 0:02:03]} 36. Kg2 {[%emt 0:00:13]} Kg7
{[%emt 0:00:43]} 1/2-1/2

[Event "44th Chess Olympiad Open 2022"]
[Site "Chennai"]
[Date "2022.08.07"]
[Round "9.47"]
[White "Al-Sulaiti, Ghanem"]
[Black "Juarez Flores, Carlos A."]
[Result "0-1"]
[WhiteElo "2183"]
[BlackElo "2335"]
[Annotator "RC"]
[PlyCount "100"]
[EventDate "2022.??.??"]
[TimeControl "60"]

1. e4 {[%emt 0:00:02]} c6 {[%emt 0:00:07]} 2. d4 {[%emt 0:00:28]} d5 {[%emt 0:
00:00]} 3. exd5 {[%emt 0:01:16]} cxd5 {[%emt 0:00:07]} 4. Bd3 {[%emt 0:00:04]}
Nc6 {[%emt 0:00:23]} 5. c3 {[%emt 0:00:07]} Nf6 {[%emt 0:00:24]} 6. h3 {
[%emt 0:00:09]} e5 {[%emt 0:01:29]} 7. dxe5 {[%emt 0:00:34]} Nxe5 {[%emt 0:00:
00]} 8. Nf3 {[%emt 0:02:24]} Nxd3+ {[%emt 0:02:09]} 9. Qxd3 {[%emt 0:03:00]}
Be7 {[%emt 0:00:09]} 10. O-O {[%emt 0:03:45]} O-O {[%emt 0:00:15]} 11. Nbd2 {
[%emt 0:14:28]} Qb6 {[%emt 0:03:53]} 12. Nb3 {[%emt 0:01:21]} a5 {[%emt 0:00:
00]} 13. Be3 {[%emt 0:22:42]} Qc7 {[%emt 0:03:13]} 14. Rfe1 {[%emt 0:09:50]}
Be6 {[%emt 0:34:30]} 15. Nbd4 {[%emt 0:06:13]} Ra6 {[%emt 0:01:27]} 16. Rad1 {
[%emt 0:11:10]} Ne4 {[%emt 0:03:23]} 17. Nd2 {[%emt 0:01:19]} Nc5 {[%emt 0:00:
00]} 18. Qc2 {[%emt 0:02:26]} Bf6 {[%emt 0:11:32]} 19. Nb5 {[%emt 0:09:31]} Qc8
{[%emt 0:00:41]} 20. Bd4 {[%emt 0:01:04]} Bf5 {[%emt 0:00:29]} 21. Qc1 {
[%emt 0:05:16]} Nd3 {[%emt 0:00:13]} 22. Qa1 {[%emt 0:00:08]} Nxe1 {[%emt 0:00:
00]} 23. Rxe1 {[%emt 0:00:02]} Bxd4 {[%emt 0:04:41]} 24. Nxd4 {[%emt 0:00:07]}
Rg6 {[%emt 0:00:10]} 25. Kh2 {[%emt 0:01:17]} Qc7+ {[%emt 0:02:14]} 26. Kh1 {
[%emt 0:00:01]} Qf4 {[%emt 0:00:57]} 27. Re3 {[%emt 0:00:58]} Qxf2 {[%emt 0:00:
00]} 28. Re2 {[%emt 0:00:16]} Qf4 {[%emt 0:00:07]} 29. Qe1 {[%emt 0:00:02]} Bc8
{[%emt 0:05:36]} 30. N2f3 {[%emt 0:01:25]} Qg3 {[%emt 0:02:03]} 31. Qxg3 {
[%emt 0:02:00]} Rxg3 {[%emt 0:00:03]} 32. Re7 {[%emt 0:01:25]} Rg6 {[%emt 0:00:
00]} 33. Ne5 {[%emt 0:00:38]} Rf6 {[%emt 0:01:32]} 34. Kg1 {[%emt 0:00:12]} Rd8
{[%emt 0:01:16]} 35. Rc7 {[%emt 0:00:24]} h6 {[%emt 0:01:43]} 36. b3 {[%emt 0:
00:00]} Re8 {[%emt 0:01:04]} 37. Nd3 {[%emt 0:00:47]} b6 {[%emt 0:00:45]} 38.
Nc6 {[%emt 0:01:05]} Bf5 {[%emt 0:03:27]} 39. Nde5 {[%emt 0:00:19]} Be4 {
[%emt 0:01:47]} 40. Nd7 {[%emt 0:00:42]} Rfe6 {[%emt 0:01:31]} 41. b4 {[%emt 0:
00:00]} Kh7 {[%emt 0:03:23]} 42. b5 {[%emt 0:01:23]} h5 {[%emt 0:04:02]} 43.
Kf2 {[%emt 0:03:55]} h4 {[%emt 0:02:07]} 44. g4 {[%emt 0:00:43]} hxg3+ {
[%emt 0:00:21]} 45. Kxg3 {[%emt 0:00:06]} Bd3 {[%emt 0:03:26]} 46. a4 {[%emt 0:
00:00]} Re3+ {[%emt 0:00:31]} 47. Kf2 {[%emt 0:00:52]} Re2+ {[%emt 0:00:20]}
48. Kf3 {[%emt 0:00:10]} R8e3+ {[%emt 0:00:12]} 49. Kf4 {[%emt 0:00:12]} Kh6 {
[%emt 0:00:12]} 50. h4 {[%emt 0:01:23]} f6 {[%emt 0:01:54]} 0-1

[Event "44th Chess Olympiad Open 2022"]
[Site "Chennai"]
[Date "2022.08.07"]
[Round "9.47"]
[White "Lorenzana, Wilson Estuardo"]
[Black "Al-Homaid, Abdulla"]
[Result "1-0"]
[WhiteElo "2182"]
[BlackElo "1358"]
[Annotator "RC"]
[PlyCount "69"]
[EventDate "2022.??.??"]
[TimeControl "60"]

1. e4 {[%emt 0:00:12]} e5 {[%emt 0:00:08]} 2. Nf3 {[%emt 0:00:06]} Nc6 {
[%emt 0:00:06]} 3. Bc4 {[%emt 0:00:18]} Bc5 {[%emt 0:00:19]} 4. c3 {[%emt 0:00:
00]} Nf6 {[%emt 0:00:17]} 5. d3 {[%emt 0:00:23]} d6 {[%emt 0:00:35]} 6. O-O {
[%emt 0:00:36]} h6 {[%emt 0:00:37]} 7. a4 {[%emt 0:00:36]} a5 {[%emt 0:01:02]}
8. h3 {[%emt 0:03:16]} O-O {[%emt 0:00:31]} 9. Qb3 {[%emt 0:00:08]} Qe7 {
[%emt 0:11:02]} 10. Be3 {[%emt 0:04:38]} Be6 {[%emt 0:10:48]} 11. Nbd2 {
[%emt 0:10:08]} Bxc4 {[%emt 0:13:47]} 12. Nxc4 {[%emt 0:00:27]} b6 {[%emt 0:00:
00]} 13. Rae1 {[%emt 0:23:43]} Rad8 {[%emt 0:10:15]} 14. Nh4 {[%emt 0:15:49]}
Qd7 {[%emt 0:02:49]} 15. Bxc5 {[%emt 0:06:11]} dxc5 {[%emt 0:00:54]} 16. Re3 {
[%emt 0:01:12]} Nh5 {[%emt 0:06:14]} 17. Kh2 {[%emt 0:00:49]} Qe6 {[%emt 0:00:
00]} 18. g3 {[%emt 0:02:35]} Ne7 {[%emt 0:05:50]} 19. Qd1 {[%emt 0:02:36]} g6 {
[%emt 0:03:16]} 20. Qg4 {[%emt 0:00:07]} Nc6 {[%emt 0:03:56]} 21. Qxe6 {
[%emt 0:00:25]} fxe6 {[%emt 0:00:30]} 22. Nxg6 {[%emt 0:00:17]} Rf6 {[%emt 0:
00:00]} 23. Ngxe5 {[%emt 0:00:21]} Nxe5 {[%emt 0:01:01]} 24. Nxe5 {[%emt 0:00:
00]} Rd6 {[%emt 0:06:59]} 25. f4 {[%emt 0:00:43]} Kg7 {[%emt 0:00:48]} 26. Ref3
{[%emt 0:00:16]} Rf8 {[%emt 0:00:27]} 27. g4 {[%emt 0:01:40]} Nf6 {[%emt 0:00:
00]} 28. h4 {[%emt 0:02:12]} Nd7 {[%emt 0:01:32]} 29. Nc4 {[%emt 0:00:25]} Rc6
{[%emt 0:00:16]} 30. e5 {[%emt 0:00:20]} Rf7 {[%emt 0:00:50]} 31. h5 {[%emt 0:
00:00]} Nf8 {[%emt 0:01:10]} 32. Kg3 {[%emt 0:00:18]} Nh7 {[%emt 0:00:17]} 33.
Kh4 {[%emt 0:00:49]} Rf8 {[%emt 0:00:29]} 34. g5 {[%emt 0:00:19]} Rf5 {[%emt 0:
00:00]} 35. g6 {[%emt 0:00:58]} 1-0

[Event "44th Chess Olympiad Open 2022"]
[Site "Chennai"]
[Date "2022.08.07"]
[Round "9.47"]
[White "Erfan Mohamad Firdaus"]
[Black "Galvez Dastin, Eduardo"]
[Result "1-0"]
[WhiteElo "1294"]
[BlackElo "2152"]
[Annotator "ChessBase"]
[PlyCount "75"]
[EventDate "2022.??.??"]
[TimeControl "60"]

1. e4 {[%emt 0:00:35]} c6 {[%emt 0:00:10]} 2. d4 {[%emt 0:00:21]} d5 {[%emt 0:
00:00]} 3. exd5 {[%emt 0:00:27]} cxd5 {[%emt 0:00:08]} 4. Bd3 {[%emt 0:00:11]}
Nc6 {[%emt 0:00:54]} 5. c3 {[%emt 0:00:22]} Qc7 {[%emt 0:00:09]} 6. h3 {
[%emt 0:00:37]} e6 {[%emt 0:00:29]} 7. Nf3 {[%emt 0:00:41]} Bd6 {[%emt 0:00:07]
} 8. Nbd2 {[%emt 0:01:16]} Nf6 {[%emt 0:00:45]} 9. O-O {[%emt 0:01:02]} O-O {
[%emt 0:03:24]} 10. Re1 {[%emt 0:00:47]} Bd7 {[%emt 0:01:40]} 11. Nf1 {[%emt 0:
00:00]} Rab8 {[%emt 0:22:02]} 12. Bg5 {[%emt 0:02:44]} b5 {[%emt 0:01:20]} 13.
Qd2 {[%emt 0:11:22]} Nh5 {[%emt 0:01:59]} 14. Bc2 {[%emt 0:07:39]} f6 {[%emt 0:
00:00]} 15. Be3 {[%emt 0:11:29]} b4 {[%emt 0:17:27]} 16. cxb4 {[%emt 0:22:09]}
Nxb4 {[%emt 0:06:33]} 17. Bb1 {[%emt 0:03:22]} Nf4 {[%emt 0:01:57]} 18. a3 {
[%emt 0:01:05]} Nc6 {[%emt 0:00:38]} 19. g3 {[%emt 0:02:35]} Nxh3+ {[%emt 0:00:
00]} 20. Kg2 {[%emt 0:00:48]} g5 {[%emt 0:00:05]} 21. Qd3 {[%emt 0:05:22]} Rf7
{[%emt 0:00:23]} 22. N1h2 {[%emt 0:01:20]} e5 {[%emt 0:03:58]} 23. dxe5 {
[%emt 0:14:50]} Nxe5 {[%emt 0:00:40]} 24. Qd4 {[%emt 0:00:31]} Nxf3 {[%emt 0:
00:00]} 25. Nxf3 {[%emt 0:00:15]} Be5 {[%emt 0:00:35]} 26. Qxd5 {[%emt 0:01:27]
} g4 {[%emt 0:02:09]} 27. Nxe5 {[%emt 0:00:50]} fxe5 {[%emt 0:01:20]} 28. Rc1 {
[%emt 0:01:14]} Qxc1 {[%emt 0:01:05]} 29. Bxh7+ {[%emt 0:01:03]} Kg7 {[%emt 0:
00:00]} 30. Qxe5+ {[%emt 0:00:48]} Kxh7 {[%emt 0:00:17]} 31. Rxc1 {[%emt 0:00:
00]} Re8 {[%emt 0:00:23]} 32. Qh5+ {[%emt 0:01:23]} Kg8 {[%emt 0:00:05]} 33.
Bd4 {[%emt 0:00:50]} Rxf2+ {[%emt 0:00:36]} 34. Bxf2 {[%emt 0:00:36]} Re2 {
[%emt 0:00:05]} 35. Qd5+ {[%emt 0:00:53]} Be6 {[%emt 0:00:19]} 36. Qd8+ {
[%emt 0:01:40]} Kg7 {[%emt 0:00:24]} 37. Rc7+ {[%emt 0:00:54]} Kg6 {[%emt 0:00:
00]} 38. Qd3+ {[%emt 0:00:20]} 1-0